fUSD/lending_fUSD_20241127
["ID","MTS","AMOUNT","RATE_DAILY","PERIOD"]
[343496533,1732672243443,-500.0,0.00016999,2]
[343496534,1732672243453,-500.0,0.00016999,2]
[343496535,1732672243463,-500.0,0.00016999,2]
[343496536,1732672243473,-500.0,0.00016999,2]
[343496537,1732672243484,-500.0,0.00016999,2]
[343496538,1732672243494,-425.55219514,0.00016999,2]
[343496539,1732672243505,-279.57295598,0.00016999,2]
[343496540,1732672243515,-544.99513457,0.00016999,2]
[343496541,1732672243524,-500.0,0.00016999,2]
[343496542,1732672243533,-500.0,0.00016999,2]
[343496543,1732672243543,-500.0,0.00016999,2]
[343496544,1732672243553,-465.87982695,0.00016999,2]
[343496545,1732672243563,-500.0,0.00016999,2]
[343496546,1732672243572,-500.0,0.00016999,2]
[343496547,1732672243582,-500.0,0.00016999,2]
[343496548,1732672243597,-500.0,0.00016999,2]
[343496549,1732672243607,-500.0,0.00016999,2]
[343496550,1732672243617,-500.0,0.00016999,2]
[343496551,1732672243627,-500.0,0.00016999,2]
[343496552,1732672243638,-500.0,0.00016999,2]
[343496553,1732672243649,-500.0,0.00016999,2]
[343496554,1732672243658,-500.0,0.00016999,2]
[343496555,1732672243668,-500.0,0.00016999,2]
[343496556,1732672243678,-174.02234446,0.00016999,2]
[343496557,1732672243688,-1692.26,0.00016999,2]
[343496558,1732672243698,-1692.26,0.00016999,2]
[343496559,1732672243707,-1692.26,0.00016999,2]
[343496560,1732672243718,-1692.26,0.00016999,2]
[343496561,1732672243730,-1692.26,0.00016999,2]
[343496562,1732672243740,-1692.26,0.00016999,2]
[343496563,1732672243751,-1692.26,0.00016999,2]
[343496564,1732672243762,-1692.26,0.00016999,2]
[343496565,1732672243772,-1692.26,0.00016999,2]
[343496566,1732672243783,-1692.26,0.00016999,2]
[343496567,1732672243792,-1692.26,0.00016999,2]
[343496568,1732672243802,-1692.26,0.00016999,2]
[343496569,1732672243816,-1692.26,0.00016999,2]
[343496570,1732672243827,-1692.26,0.00016999,2]
[343496571,1732672243837,-1692.26,0.00016999,2]
[343496572,1732672243848,-1692.26,0.00016999,2]
[343496573,1732672243858,-1692.26,0.00016999,2]
[343496574,1732672243868,-1692.26,0.00016999,2]
[343496575,1732672243878,-1692.26,0.00016999,2]
[343496576,1732672243890,-1692.26,0.00016999,2]
[343496577,1732672243904,-1692.26,0.00016999,2]
[343496578,1732672243914,-1692.26929132,0.00016999,2]
[343496579,1732672243924,-500.0,0.00016999,2]
[343496580,1732672243935,-500.0,0.00016999,2]
[343496581,1732672243945,-500.0,0.00016999,2]
[343496582,1732672243956,-500.0,0.00016999,2]
[343496583,1732672243965,-500.0,0.00016999,2]
[343496584,1732672243975,-500.0,0.00016999,2]
[343496585,1732672243985,-178.44818803,0.00016999,2]
[343496586,1732672243995,-500.0,0.00016999,2]
[343496587,1732672244008,-500.0,0.00016999,2]
[343496588,1732672244018,-500.0,0.00016999,2]
[343496589,1732672244027,-500.0,0.00016999,2]
[343496590,1732672244037,-315.34705226,0.00016999,2]
[343496591,1732672244046,-500.0,0.00016999,2]
[343496592,1732672244056,-500.0,0.00016999,2]
[343496593,1732672244066,-500.0,0.00016999,2]
[343496594,1732672244076,-500.0,0.00016999,2]
[343496595,1732672244086,-176.38875455,0.00016999,2]
[343496596,1732672244097,-568.33781329,0.00016999,2]
[343496597,1732672244111,-500.0,0.00016999,2]
[343496598,1732672244121,-500.0,0.00016999,2]
[343496599,1732672244132,-500.0,0.00016999,2]
[343496600,1732672244141,-500.0,0.00016999,2]
[343496601,1732672244152,-500.0,0.00016999,2]
[343496602,1732672244162,-500.0,0.00016999,2]
[343496603,1732672244171,-500.0,0.00016999,2]
[343496604,1732672244182,-500.0,0.00016999,2]
[343496605,1732672244192,-500.0,0.00016999,2]
[343496606,1732672244202,-500.0,0.00016999,2]
[343496607,1732672244211,-500.0,0.00016999,2]
[343496608,1732672244221,-500.0,0.00016999,2]
[343496609,1732672244231,-500.0,0.00016999,2]
[343496610,1732672244241,-960.41,0.00016999,2]
[343496611,1732672244251,-500.0,0.00016999,2]
[343496612,1732672244266,-960.41,0.00016999,2]
[343496613,1732672244277,-500.0,0.00016999,2]
[343496614,1732672244287,-960.41,0.00016999,2]
[343496615,1732672244296,-500.0,0.00016999,2]
[343496616,1732672244307,-500.0,0.00016999,2]
[343496617,1732672244317,-960.41,0.00016999,2]
[343496618,1732672244327,-533.01352928,0.00016999,2]
[343496619,1732672244338,-500.0,0.00016999,2]
[343496620,1732672244348,-960.41,0.00016999,2]
[343496621,1732672244358,-500.0,0.00016999,2]
[343496622,1732672244368,-960.41,0.00016999,2]
[343496623,1732672244378,-960.41,0.00016999,2]
[343496624,1732672244388,-186.41499278,0.00016999,2]
[343496625,1732672244398,-960.41,0.00016999,2]
[343496626,1732672244408,-960.41,0.00016999,2]
[343496627,1732672244418,-960.41,0.00016999,2]
[343496628,1732672244428,-960.41,0.00016999,2]
[343496629,1732672244438,-960.41,0.00016999,2]
[343496630,1732672244448,-960.41,0.00016999,2]
[343496631,1732672244457,-960.41,0.00016999,2]
[343496632,1732672244467,-960.41,0.00016999,2]
[343496633,1732672244477,-960.41,0.00016999,2]
[343496634,1732672244487,-960.41,0.00016999,2]
[343496635,1732672244498,-960.41,0.00016999,2]
[343496636,1732672244509,-960.41,0.00016999,2]
[343496637,1732672244519,-960.41,0.00016999,2]
[343496638,1732672244528,-960.41,0.00016999,2]
[343496639,1732672244538,-960.41148743,0.00016999,2]
[343496640,1732672244548,-500.0,0.00016999,2]
[343496641,1732672244557,-500.0,0.00016999,2]
[343496642,1732672244567,-500.0,0.00016999,2]
[343496643,1732672244577,-500.0,0.00016999,2]
[343496644,1732672244586,-500.0,0.00016999,2]
[343496645,1732672244595,-500.0,0.00016999,2]
[343496646,1732672244605,-500.0,0.00016999,2]
[343496647,1732672244615,-500.0,0.00016999,2]
[343496648,1732672244624,-500.0,0.00016999,2]
[343496649,1732672244634,-500.0,0.00016999,2]
[343496650,1732672244643,-500.0,0.00016999,2]
[343496651,1732672244653,-500.0,0.00016999,2]
[343496652,1732672244662,-500.0,0.00016999,2]
[343496653,1732672244672,-216.21939748,0.00016999,2]
[343496654,1732672244682,-500.0,0.00016999,2]
[343496655,1732672244694,-500.0,0.00016999,2]
[343496656,1732672244704,-519.03223124,0.00016999,2]
[343496657,1732672244714,-500.0,0.00016999,2]
[343496658,1732672244724,-500.0,0.00016999,2]
[343496659,1732672244734,-557.17211974,0.00016999,2]
[343496660,1732672244744,-500.0,0.00016999,2]
[343496661,1732672244757,-500.0,0.00016999,2]
[343496662,1732672244767,-500.0,0.00016999,2]
[343496663,1732672244776,-500.0,0.00016999,2]
[343496664,1732672244785,-500.0,0.00016999,2]
[343496665,1732672244796,-500.0,0.00016999,2]
[343496666,1732672244807,-500.0,0.00016999,2]
[343496667,1732672244818,-500.0,0.00016999,2]
[343496668,1732672244828,-500.0,0.00016999,2]
[343496669,1732672244837,-183.63503013,0.00016999,2]
[343496670,1732672244847,-500.0,0.00016999,2]
[343496671,1732672244856,-452.98133329,0.00016999,2]
[343496672,1732672244867,-500.0,0.00016999,2]
[343496674,1732672244877,-640.64153034,0.00016999,2]
[343496675,1732672244887,-565.77928347,0.00016999,2]
[343496676,1732672244899,-500.0,0.00016999,2]
[343496677,1732672244910,-500.0,0.00016999,2]
[343496678,1732672244920,-556.06863421,0.00016999,2]
[343496679,1732672244930,-523.65,0.00016999,2]
[343496680,1732672244939,-523.65,0.00016999,2]
[343496681,1732672244949,-523.65,0.00016999,2]
[343496682,1732672244958,-523.65,0.00016999,2]
[343496683,1732672244968,-523.65,0.00016999,2]
[343496684,1732672244978,-523.65,0.00016999,2]
[343496685,1732672244989,-500.0,0.00016999,2]
[343496686,1732672244999,-523.65,0.00016999,2]
[343496687,1732672245018,-500.0,0.00016999,2]
[343496688,1732672245028,-523.65,0.00016999,2]
[343496689,1732672245039,-500.0,0.00016999,2]
[343496690,1732672245050,-523.65,0.00016999,2]
[343496691,1732672245060,-500.0,0.00016999,2]
[343496692,1732672245069,-523.65,0.00016999,2]
[343496693,1732672245079,-500.0,0.00016999,2]
[343496695,1732672245089,-523.65,0.00016999,2]
[343496696,1732672245099,-500.0,0.00016999,2]
[343496697,1732672245109,-523.65,0.00016999,2]
[343496698,1732672245119,-500.0,0.00016999,2]
[343496699,1732672245129,-523.65,0.00016999,2]
[343496700,1732672245139,-523.65,0.00016999,2]
[343496701,1732672245149,-500.0,0.00016999,2]
[343496702,1732672245159,-523.65,0.00016999,2]
[343496703,1732672245169,-500.0,0.00016999,2]
[343496704,1732672245179,-523.65,0.00016999,2]
[343496705,1732672245189,-523.65,0.00016999,2]
[343496706,1732672245199,-500.0,0.00016999,2]
[343496707,1732672245209,-523.65,0.00016999,2]
[343496708,1732672245220,-500.0,0.00016999,2]
[343496709,1732672245231,-523.65,0.00016999,2]
[343496710,1732672245242,-500.0,0.00016999,2]
[343496711,1732672245253,-500.0,0.00016999,2]
[343496712,1732672245271,-523.65,0.00016999,2]
[343496713,1732672245282,-500.0,0.00016999,2]
[343496714,1732672245293,-500.0,0.00016999,2]
[343496715,1732672245307,-554.59393542,0.00016999,2]
[343496716,1732672245318,-523.65,0.00016999,2]
[343496717,1732672245328,-359.58997639,0.00016999,2]
[343496718,1732672245339,-523.84250595,0.00016999,2]
[343496719,1732672245350,-500.0,0.00016999,2]
[343496720,1732672245361,-500.0,0.00016999,2]
[343496721,1732672245373,-500.0,0.00016999,2]
[343496722,1732672245385,-500.0,0.00016999,2]
[343496723,1732672245395,-500.0,0.00016999,2]
[343496724,1732672245406,-500.0,0.00016999,2]
[343496725,1732672245418,-500.0,0.00016999,2]
[343496726,1732672245428,-500.0,0.00016999,2]
[343496727,1732672245439,-500.0,0.00016999,2]
[343496728,1732672245449,-500.0,0.00016999,2]
[343496729,1732672245460,-500.0,0.00016999,2]
[343496730,1732672245471,-500.0,0.00016999,2]
[343496731,1732672245482,-500.0,0.00016999,2]
[343496732,1732672245492,-500.0,0.00016999,2]
[343496733,1732672245503,-500.0,0.00016999,2]
[343496734,1732672245523,-348.49936644,0.00016999,2]
[343496735,1732672245534,-529.34578589,0.00016999,2]
[343496736,1732672245549,-500.0,0.00016999,2]
[343496739,1732672245560,-500.0,0.00016999,2]
[343496741,1732672245571,-500.0,0.00016999,2]
[343496743,1732672245582,-500.0,0.00016999,2]
[343496745,1732672245593,-500.0,0.00016999,2]
[343496746,1732672245604,-500.0,0.00016999,2]
[343496748,1732672245614,-500.0,0.00016999,2]
[343496749,1732672245624,-500.0,0.00016999,2]
[343496750,1732672245635,-500.0,0.00016999,2]
[343496751,1732672245645,-500.0,0.00016999,2]
[343496752,1732672245655,-500.0,0.00016999,2]
[343496753,1732672245666,-500.0,0.00016999,2]
[343496754,1732672245676,-500.0,0.00016999,2]
[343496755,1732672245686,-500.0,0.00016999,2]
[343496756,1732672245696,-500.0,0.00016999,2]
[343496757,1732672245705,-500.0,0.00016999,2]
[343496758,1732672245715,-500.0,0.00016999,2]
[343496759,1732672245725,-500.0,0.00016999,2]
[343496760,1732672245734,-500.0,0.00016999,2]
[343496761,1732672245744,-500.0,0.00016999,2]
[343496762,1732672245759,-621.80779512,0.00016999,2]
[343496763,1732672245769,-500.0,0.00016999,2]
[343496764,1732672245779,-514.28154026,0.00016999,2]
[343496765,1732672245788,-500.0,0.00016999,2]
[343496766,1732672245798,-211.45,0.00016999,2]
[343496767,1732672245812,-3196213.50049915,0.00017,2]
[343496768,1732672245822,-42897.30576735,0.00017,2]
[343496769,1732672245831,-15333729.95607467,0.00017,2]
[343496770,1732672246182,-2801.87017644,0.00017,2]
[343496771,1732672246215,-93057.56608723,0.00017,2]
[343496772,1732672246227,-13736.61939237,0.00017,2]
[343496773,1732672246239,-33143.4444,0.00017,2]
[343496775,1732672246337,-6.24261849,0.00016998,2]
[343496776,1732672246349,-493.75738151,0.00016998,2]
[343496777,1732672246359,-1596.43547859,0.00017,2]
[343496782,1732672246587,-512.38188322,0.00016998,2]
[343496783,1732672246596,-500.0,0.00016998,2]
[343496784,1732672246606,-500.0,0.00016999,2]
[343496785,1732672246615,-500.0,0.00016999,2]
[343496786,1732672246625,-2865.2064774,0.00017,2]
[343496787,1732672246636,-3069.81175162,0.00017,2]
[343496788,1732672246685,-351.61632398,0.00017,2]
[343496789,1732672246698,-2649.40284167,0.00017,2]
[343496790,1732672246726,-3492.83259694,0.00017,2]
[343496791,1732672246737,-925.7900008,0.00017,2]
[343496792,1732672246749,-3331.5,0.00017,2]
[343496793,1732672246845,-500.0,0.00016998,2]
[343496794,1732672246854,-7575.33963792,0.00017,2]
[343496797,1732672246867,-15293.6144517,0.00017,2]
[343496799,1732672246878,-6546.25539285,0.00017,2]
[343496801,1732672246890,-347.85922376,0.00017,2]
[343496803,1732672246902,-1285.79681518,0.00017,2]
[343496851,1732672841995,153.47,0.00016658,30]
[343496852,1732672966779,500.0,0.00017,30]
[343496863,1732673358102,-287.55,0.00014292,2]
[343496864,1732673358125,-450.0,0.00015,2]
[343496866,1732673431673,-170.88,0.0001576,2]
[343496867,1732673431683,-200.244,0.0001602,2]
[343496868,1732673431695,-450.586,0.0001602,2]
[343496869,1732673431705,-300.0,0.00016055,2]
[343496870,1732673431716,-22550.48,0.00016056,2]
[343496871,1732673431727,-166.6,0.00016092,2]
[343496872,1732673431737,-1000.0,0.00016134,2]
[343496873,1732673431746,-250.0,0.00016187,2]
[343496874,1732673431757,-184.25,0.00016235,2]
[343496875,1732673431766,-287.55,0.00016556,2]
[343496876,1732673431776,-1103.40083458,0.0001666,2]
[343496877,1732673431785,-271.4303,0.000168,2]
[343496878,1732673431798,-4107.527,0.000168,2]
[343496879,1732673431808,-152.169,0.000168,2]
[343496880,1732673431817,-959.594,0.000168,2]
[343496881,1732673431827,-5131.66828574,0.000168,2]
[343496882,1732673431839,-1704.05171426,0.000168,2]
[343496883,1732673431849,-2327.83790793,0.000169,2]
[343496884,1732673431861,-172.16209207,0.000169,2]
[343496885,1732673431870,-153.95437082,0.000169,2]
[343496886,1732673431880,-138.35353711,0.000169,2]
[343496887,1732673431905,-439.67854216,0.000169,2]
[343496888,1732673431915,-197.477,0.00016997,2]
[343496889,1732673431924,-501.99763794,0.00016998,2]
[343496890,1732673431933,-520.98430599,0.00016998,2]
[343496891,1732673431943,-500.0,0.00016998,2]
[343496892,1732673431953,-462.94654894,0.00016998,2]
[343496893,1732673431962,-509.87363996,0.00016998,2]
[343496894,1732673431973,-504.2106342,0.00016998,2]
[343496895,1732673431982,-500.0,0.00016998,2]
[343496896,1732673431992,-500.0,0.00016998,2]
[343496897,1732673432002,-500.0,0.00016998,2]
[343496898,1732673432012,-500.49,0.00016998,2]
[343496899,1732673432021,-554.44251696,0.00016998,2]
[343496900,1732673432031,-238.96953983,0.00016998,2]
[343496901,1732673432040,-520.78085787,0.00016998,2]
[343496902,1732673432051,-500.0,0.00016998,2]
[343496903,1732673432060,-546.25,0.00016998,2]
[343496904,1732673432070,-150.0,0.00016998,2]
[343496906,1732673432079,-150.0,0.00016998,2]
[343496907,1732673432089,-150.0,0.00016998,2]
[343496909,1732673432099,-150.0,0.00016998,2]
[343496911,1732673432108,-150.0,0.00016998,2]
[343496912,1732673432117,-150.0,0.00016998,2]
[343496913,1732673432127,-150.0,0.00016998,2]
[343496914,1732673432136,-150.0,0.00016998,2]
[343496915,1732673432146,-150.0,0.00016998,2]
[343496916,1732673432155,-150.0,0.00016998,2]
[343496917,1732673432166,-500.0,0.00016999,2]
[343496918,1732673432177,-500.0,0.00016999,2]
[343496919,1732673432191,-500.0,0.00016999,2]
[343496920,1732673432201,-500.0,0.00016999,2]
[343496921,1732673432210,-500.0,0.00016999,2]
[343496922,1732673432219,-500.0,0.00016999,2]
[343496923,1732673432229,-500.0,0.00016999,2]
[343496924,1732673432239,-336.1,0.00016999,2]
[343496925,1732673432251,-500.0,0.00016999,2]
[343496926,1732673432260,-1202.24,0.00016999,2]
[343496927,1732673432270,-500.0,0.00016999,2]
[343496928,1732673432279,-500.0,0.00016999,2]
[343496930,1732673432289,-587.32081784,0.00016999,2]
[343496932,1732673432306,-511.50403053,0.00016999,2]
[343496935,1732673432315,-523.51937457,0.00016999,2]
[343496936,1732673432325,-519.00519475,0.00016999,2]
[343496937,1732673432334,-337.5318769,0.00016999,2]
[343496939,1732673432344,-504.28977797,0.00016999,2]
[343496941,1732673432354,-500.0,0.00016999,2]
[343496943,1732673432363,-505.56703532,0.00016999,2]
[343496945,1732673432373,-504.0974079,0.00016999,2]
[343496947,1732673432382,-500.0,0.00016999,2]
[343496949,1732673432392,-504.44178804,0.00016999,2]
[343496951,1732673432402,-503.35590068,0.00016999,2]
[343496953,1732673432411,-500.0,0.00016999,2]
[343496955,1732673432421,-506.39197042,0.00016999,2]
[343496957,1732673432430,-504.81213538,0.00016999,2]
[343496959,1732673432441,-334.60195691,0.00016999,2]
[343496961,1732673432450,-505.52340802,0.00016999,2]
[343496963,1732673432459,-548.6516049,0.00016999,2]
[343496965,1732673432469,-504.85298197,0.00016999,2]
[343496967,1732673432480,-508.9880256,0.00016999,2]
[343496969,1732673432489,-514.79294711,0.00016999,2]
[343496971,1732673432499,-515.92079691,0.00016999,2]
[343496972,1732673432508,-500.0,0.00016999,2]
[343496973,1732673432518,-500.0,0.00016999,2]
[343496974,1732673432528,-222.12,0.00016999,2]
[343496975,1732673432537,-505.23037721,0.00016999,2]
[343496976,1732673432548,-500.0,0.00016999,2]
[343496977,1732673432558,-500.0,0.00016999,2]
[343496978,1732673432567,-500.0,0.00016999,2]
[343496979,1732673432577,-251.24,0.00016999,2]
[343496980,1732673432588,-522.27132776,0.00016999,2]
[343496981,1732673432598,-500.0,0.00016999,2]
[343496982,1732673432608,-512.22043026,0.00016999,2]
[343496983,1732673432617,-503.58907277,0.00016999,2]
[343496984,1732673432627,-519.47447199,0.00016999,2]
[343496985,1732673432637,-535.69481399,0.00016999,2]
[343496986,1732673432647,-509.18234014,0.00016999,2]
[343496987,1732673432657,-514.26292261,0.00016999,2]
[343496988,1732673432667,-500.0,0.00016999,2]
[343496989,1732673432676,-500.0,0.00016999,2]
[343496990,1732673432686,-299.0,0.00016999,2]
[343496991,1732673432696,-535.19565541,0.00016999,2]
[343496992,1732673432705,-644.732087,0.00016999,2]
[343496993,1732673432718,-500.0,0.00016999,2]
[343496994,1732673432730,-150.0,0.00016999,2]
[343496995,1732673432742,-514.9192046,0.00016999,2]
[343496996,1732673432754,-520.27089113,0.00016999,2]
[343496997,1732673432765,-500.0,0.00016999,2]
[343496998,1732673432775,-500.0,0.00016999,2]
[343496999,1732673432785,-500.0,0.00016999,2]
[343497000,1732673432797,-500.0,0.00016999,2]
[343497001,1732673432806,-500.0,0.00016999,2]
[343497002,1732673432816,-500.0,0.00016999,2]
[343497003,1732673432827,-523.46044751,0.00016999,2]
[343497004,1732673432838,-500.0,0.00016999,2]
[343497005,1732673432850,-500.0,0.00016999,2]
[343497006,1732673432860,-500.0,0.00016999,2]
[343497007,1732673432869,-500.0,0.00016999,2]
[343497008,1732673432880,-506.34629154,0.00016999,2]
[343497009,1732673432890,-500.0,0.00016999,2]
[343497010,1732673432901,-500.0,0.00016999,2]
[343497011,1732673432911,-512.127972,0.00016999,2]
[343497012,1732673432923,-500.0,0.00016999,2]
[343497013,1732673432934,-500.0,0.00016999,2]
[343497014,1732673432946,-572.65,0.00016999,2]
[343497015,1732673432955,-515.38857799,0.00016999,2]
[343497016,1732673432965,-500.0,0.00016999,2]
[343497017,1732673432975,-563.6165762,0.00016999,2]
[343497018,1732673432984,-500.0,0.00016999,2]
[343497019,1732673432993,-500.0,0.00016999,2]
[343497020,1732673433002,-484.5,0.00016999,2]
[343497021,1732673433012,-500.0,0.00016999,2]
[343497022,1732673433021,-508.71073515,0.00016999,2]
[343497023,1732673433031,-500.0,0.00016999,2]
[343497024,1732673433041,-514.17573014,0.00016999,2]
[343497025,1732673433053,-500.0,0.00016999,2]
[343497026,1732673433063,-500.0,0.00016999,2]
[343497027,1732673433073,-520.31651474,0.00016999,2]
[343497028,1732673433084,-525.49375767,0.00016999,2]
[343497029,1732673433094,-500.0,0.00016999,2]
[343497030,1732673433103,-512.18078852,0.00016999,2]
[343497031,1732673433113,-500.0,0.00016999,2]
[343497032,1732673433122,-500.0,0.00016999,2]
[343497033,1732673433132,-500.0,0.00016999,2]
[343497034,1732673433141,-500.0,0.00016999,2]
[343497035,1732673433151,-500.0,0.00016999,2]
[343497036,1732673433161,-500.0,0.00016999,2]
[343497037,1732673433173,-500.0,0.00016999,2]
[343497038,1732673433183,-500.0,0.00016999,2]
[343497039,1732673433192,-500.0,0.00016999,2]
[343497040,1732673433203,-500.0,0.00016999,2]
[343497041,1732673433212,-500.0,0.00016999,2]
[343497042,1732673433222,-500.0,0.00016999,2]
[343497043,1732673433231,-500.0,0.00016999,2]
[343497044,1732673433241,-501.64,0.00016999,2]
[343497045,1732673433252,-505.89611258,0.00016999,2]
[343497046,1732673433263,-500.0,0.00016999,2]
[343497047,1732673433272,-500.0,0.00016999,2]
[343497048,1732673433282,-500.0,0.00016999,2]
[343497049,1732673433291,-500.0,0.00016999,2]
[343497050,1732673433303,-500.0,0.00016999,2]
[343497051,1732673433312,-500.0,0.00016999,2]
[343497052,1732673433322,-500.0,0.00016999,2]
[343497053,1732673433331,-500.0,0.00016999,2]
[343497054,1732673433341,-500.0,0.00016999,2]
[343497055,1732673433351,-558.46,0.00016999,2]
[343497056,1732673433360,-513.29177098,0.00016999,2]
[343497057,1732673433369,-519.00949361,0.00016999,2]
[343497058,1732673433380,-500.0,0.00016999,2]
[343497059,1732673433390,-500.0,0.00016999,2]
[343497060,1732673433400,-500.0,0.00016999,2]
[343497061,1732673433410,-324.96,0.00016999,2]
[343497062,1732673433420,-500.0,0.00016999,2]
[343497063,1732673433430,-500.0,0.00016999,2]
[343497064,1732673433440,-500.0,0.00016999,2]
[343497065,1732673433449,-500.0,0.00016999,2]
[343497066,1732673433459,-500.0,0.00016999,2]
[343497067,1732673433469,-500.0,0.00016999,2]
[343497068,1732673433479,-500.0,0.00016999,2]
[343497069,1732673433489,-500.0,0.00016999,2]
[343497070,1732673433498,-500.0,0.00016999,2]
[343497071,1732673433508,-500.0,0.00016999,2]
[343497072,1732673433518,-500.0,0.00016999,2]
[343497073,1732673433528,-500.0,0.00016999,2]
[343497074,1732673433538,-500.0,0.00016999,2]
[343497075,1732673433548,-500.0,0.00016999,2]
[343497076,1732673433558,-500.0,0.00016999,2]
[343497077,1732673433568,-500.0,0.00016999,2]
[343497078,1732673433578,-452.98,0.00016999,2]
[343497079,1732673433588,-500.0,0.00016999,2]
[343497080,1732673433598,-568.33781329,0.00016999,2]
[343497081,1732673433608,-500.0,0.00016999,2]
[343497082,1732673433617,-500.0,0.00016999,2]
[343497083,1732673433627,-394.32,0.00016999,2]
[343497084,1732673433637,-521.83566132,0.00016999,2]
[343497085,1732673433647,-500.0,0.00016999,2]
[343497086,1732673433657,-500.0,0.00016999,2]
[343497087,1732673433667,-500.0,0.00016999,2]
[343497088,1732673433677,-500.0,0.00016999,2]
[343497089,1732673433687,-500.0,0.00016999,2]
[343497090,1732673433697,-500.0,0.00016999,2]
[343497091,1732673433709,-500.0,0.00016999,2]
[343497092,1732673433719,-500.0,0.00016999,2]
[343497093,1732673433729,-500.0,0.00016999,2]
[343497094,1732673433738,-581.60311472,0.00016999,2]
[343497095,1732673433748,-500.0,0.00016999,2]
[343497096,1732673433758,-500.0,0.00016999,2]
[343497097,1732673433767,-500.0,0.00016999,2]
[343497098,1732673433777,-450.0,0.00016999,2]
[343497099,1732673433787,-500.0,0.00016999,2]
[343497100,1732673433798,-500.0,0.00016999,2]
[343497101,1732673433816,-500.0,0.00016999,2]
[343497102,1732673433825,-500.0,0.00016999,2]
[343497103,1732673433834,-379.05863421,0.00016999,2]
[343497104,1732673433844,-500.0,0.00016999,2]
[343497105,1732673433854,-500.0,0.00016999,2]
[343497106,1732673433863,-500.0,0.00016999,2]
[343497107,1732673433873,-500.0,0.00016999,2]
[343497108,1732673433882,-464.88,0.00016999,2]
[343497109,1732673433891,-500.0,0.00016999,2]
[343497110,1732673433901,-500.0,0.00016999,2]
[343497111,1732673434113,-500.0,0.00016999,2]
[343497112,1732673434124,-500.0,0.00016999,2]
[343497113,1732673434134,-500.0,0.00016999,2]
[343497114,1732673434144,-500.0,0.00016999,2]
[343497115,1732673434154,-491.96,0.00016999,2]
[343497116,1732673434167,-500.0,0.00016999,2]
[343497117,1732673434177,-501.5541843,0.00016999,2]
[343497118,1732673434186,-500.0,0.00016999,2]
[343497119,1732673434196,-500.0,0.00016999,2]
[343497120,1732673434205,-500.0,0.00016999,2]
[343497121,1732673434215,-500.0,0.00016999,2]
[343497122,1732673434224,-500.0,0.00016999,2]
[343497123,1732673434233,-500.0,0.00016999,2]
[343497124,1732673434244,-500.0,0.00016999,2]
[343497125,1732673434255,-500.0,0.00016999,2]
[343497126,1732673434264,-597.34,0.00016999,2]
[343497127,1732673434274,-500.0,0.00016999,2]
[343497128,1732673434283,-308.85752647,0.00016999,2]
[343497129,1732673434292,-500.0,0.00016999,2]
[343497130,1732673434302,-500.0,0.00016999,2]
[343497131,1732673434312,-500.0,0.00016999,2]
[343497132,1732673434321,-640.64153034,0.00016999,2]